bitfinex/quotes_BTCUSD_20241119
["timestamp","ask_amount","ask_price","bid_price","bid_amount"]
[1731977552277,0.03813882,91013.0,91012.0,0.37533755]
[1731977553092,0.03513882,91013.0,91012.0,0.35333755]
[1731977553364,0.03713882,91013.0,91012.0,0.36833755]
[1731977554835,0.03713882,91013.0,91012.0,0.37004355]
[1731977555274,0.02340308,91013.0,91012.0,0.37004355]
[1731977556636,0.03713867,91013.0,91012.0,0.37004355]
[1731977557811,0.06986956,91013.0,91012.0,0.37004355]
[1731977558047,0.06986956,91013.0,91012.0,0.26016855]
[1731977558273,0.05613397,91013.0,91012.0,0.26016855]
[1731977558707,0.08888479,91013.0,91012.0,0.26016855]
[1731977559165,0.05613397,91013.0,91012.0,0.26016855]
[1731977559665,0.003,91013.0,91012.0,0.26016855]
[1731977559855,0.05625804,91013.0,91012.0,0.37004355]
[1731977560312,0.0699942,91013.0,91012.0,0.37004355]
[1731977561454,0.08905571,91013.0,91012.0,0.37004355]
[1731977562353,0.003,91013.0,91012.0,0.37004355]
[1731977562572,0.0563167,91013.0,91012.0,0.37004355]
[1731977562813,0.0483167,91013.0,91012.0,0.37004355]
[1731977563043,0.0483167,91013.0,91012.0,0.38004355]
[1731977564345,0.109855,91029.0,91022.0,0.109862]
[1731977564567,0.13037415,91028.0,91023.0,0.0831]
[1731977564746,0.02051815,91027.0,91023.0,0.192962]
[1731977564925,0.219697,91035.0,91023.0,0.19435959]
[1731977564926,0.02051815,91026.0,91023.0,0.19435959]
[1731977565133,0.10985,91033.0,91024.0,0.0488]
[1731977565502,0.109852,91031.0,91026.0,0.109858]
[1731977565706,0.02052614,91030.0,91026.0,0.109858]
[1731977565947,0.02052614,91029.0,91027.0,0.109856]
[1731977566152,0.10985,91033.0,91028.0,0.109856]
[1731977566361,0.02053533,91032.0,91028.0,0.109856]
[1731977566590,0.02053523,91031.0,91024.0,0.0548]
[1731977566805,0.22168,91042.0,91024.0,0.0548]
[1731977566806,0.000853,91101.0,91030.0,0.76820402]
[1731977567089,0.19568699,91116.0,91030.0,0.76820402]
[1731977567090,0.04846145,91130.0,91129.0,0.154734]
[1731977567334,0.06160526,91173.0,91129.0,0.154734]
[1731977567335,0.5379,91261.0,91173.0,0.01]
[1731977567539,0.5379,91261.0,91172.0,0.045]
[1731977567540,0.043886,91238.0,91207.0,0.01]
[1731977567792,0.12533763,91266.0,91207.0,0.01]
[1731977567793,0.219211,91237.0,91207.0,0.01]
[1731977568001,0.219175,91252.0,91208.0,0.35890159]
[1731977568221,0.21947237,91266.0,91208.0,0.64749194]
[1731977568470,0.21947237,91266.0,91208.0,0.45462256]
[1731977568727,0.0014,91209.0,91208.0,0.45462256]
[1731977568924,0.0004,91209.0,91208.0,0.45462256]
[1731977569139,0.0004,91209.0,91208.0,0.42162256]
[1731977569359,0.0004,91209.0,91208.0,0.44462256]
[1731977569598,0.0004,91209.0,91208.0,0.02]
[1731977569883,0.0004,91209.0,91208.0,0.01]
[1731977570103,0.110038,91209.0,91208.0,0.018]
[1731977570317,0.112038,91209.0,91208.0,0.046]
[1731977570537,0.112038,91209.0,91208.0,0.17176089]
[1731977570772,0.0024,91209.0,91208.0,0.028]
[1731977570984,0.0024,91209.0,91205.0,0.09584386]
[1731977570985,0.0004,91209.0,91205.0,0.09584386]
[1731977571404,0.0024,91209.0,91208.0,0.028]
[1731977571612,0.0004,91209.0,91201.0,0.09584386]
[1731977571840,0.0004,91209.0,91200.0,0.09584386]
[1731977572053,0.0084,91209.0,91208.0,0.028]
[1731977572465,0.0064,91209.0,91198.0,0.01]
[1731977572688,0.0064,91209.0,91202.0,0.16447368]
[1731977572894,0.0094,91209.0,91198.0,0.01]
[1731977573107,0.0094,91209.0,91195.0,0.10584386]
[1731977573312,0.0094,91209.0,91198.0,0.01]
[1731977573313,0.0004,91209.0,91198.0,0.01]
[1731977573537,0.0004,91209.0,91200.0,0.008]
[1731977573768,0.109635,91212.0,91200.0,0.008]
[1731977573970,0.328906,91211.0,91194.0,0.01]
[1731977574188,0.10964,91208.0,91198.0,0.014]
[1731977574414,0.10906255,91212.0,91195.0,0.01]
[1731977574629,0.10906255,91212.0,91193.0,0.01]
[1731977574844,0.001,91209.0,91200.0,0.01]
[1731977575092,0.109638,91209.0,91194.0,0.01]
[1731977575299,0.109639,91208.0,91194.0,0.024]
[1731977575507,0.109637,91210.0,91194.0,0.024]
[1731977575936,0.10964,91208.0,91198.0,0.001]
[1731977576187,0.219274,91210.0,91198.0,0.001]
[1731977576390,0.10964,91208.0,91194.0,0.024]
[1731977576612,0.001,91211.0,91197.0,0.01]
[1731977577073,0.001,91211.0,91196.0,0.01]
[1731977577074,0.109636,91211.0,91196.0,0.01]
[1731977577284,0.109638,91210.0,91196.0,0.01]
[1731977577707,0.109638,91210.0,91197.0,0.01]
[1731977577708,0.109638,91209.0,91197.0,0.01]
[1731977577910,0.005,91210.0,91196.0,0.01]
[1731977578122,0.109639,91209.0,91197.0,0.008]
[1731977578364,0.005,91210.0,91197.0,0.01]
[1731977578591,0.115638,91210.0,91197.0,0.01]
[1731977578816,0.109638,91210.0,91197.0,0.01]
[1731977579433,0.109638,91209.0,91197.0,0.01]
[1731977579577,0.0008527,91211.0,91197.0,0.01]
[1731977579780,0.109637,91210.0,91197.0,0.01]
[1731977579983,0.109639,91209.0,91197.0,0.013]
[1731977580208,0.0008527,91211.0,91197.0,0.013]
[1731977580209,0.10964,91207.0,91197.0,0.013]
[1731977580482,0.10964,91207.0,91197.0,0.01]
[1731977580702,0.219274,91210.0,91197.0,0.01]
[1731977580703,0.0008527,91211.0,91197.0,0.014]
[1731977580948,0.0008527,91211.0,91197.0,0.011]
[1731977581164,0.10906255,91210.0,91197.0,0.001]
[1731977581379,0.109638,91209.0,91197.0,0.004]
[1731977581620,0.10906255,91210.0,91197.0,0.004]
[1731977581831,0.109644,91205.0,91197.0,0.001]
[1731977582048,0.109645,91203.0,91193.0,0.17447368]
[1731977582288,0.109642,91206.0,91193.0,0.17447368]
[1731977582487,0.219279,91208.0,91197.0,0.001]
[1731977582748,0.10906255,91210.0,91197.0,0.001]
[1731977582749,0.109645,91203.0,91197.0,0.001]
[1731977582980,0.10906255,91210.0,91193.0,0.16447368]
[1731977582981,0.109646,91202.0,91193.0,0.16447368]
[1731977583195,0.219281,91207.0,91193.0,0.16847368]
[1731977583427,0.219283,91206.0,91193.0,0.004]
[1731977583628,0.10906255,91210.0,91193.0,0.004]
[1731977583629,0.10906255,91210.0,91195.0,0.16447368]
[1731977583867,0.109645,91203.0,91195.0,0.16447368]
[1731977584072,0.109647,91202.0,91197.0,0.005]
[1731977584287,0.109648,91201.0,91197.0,0.005]
[1731977584510,0.10906255,91210.0,91197.0,0.005]
[1731977584744,0.109638,91209.0,91197.0,0.005]
[1731977584953,0.109648,91201.0,91197.0,0.005]
[1731977585157,0.109647,91202.0,91197.0,0.005]
[1731977585404,0.10906255,91209.0,91197.0,0.006]
[1731977585607,0.109647,91202.0,91197.0,0.006]
[1731977586334,0.109648,91201.0,91197.0,0.006]
[1731977586562,0.109648,91201.0,91197.0,0.002]
[1731977586802,0.109648,91201.0,91197.0,0.003]
[1731977587023,0.109648,91201.0,91197.0,0.001]
[1731977587250,0.219286,91205.0,91191.0,0.01]
[1731977587481,0.219282,91207.0,91197.0,0.004]
[1731977587693,0.109647,91201.0,91191.0,0.01]
[1731977587928,0.10965,91199.0,91198.0,0.0118]
[1731977588350,0.10906255,91209.0,91198.0,0.0118]
[1731977588572,0.10965,91199.0,91198.0,0.0118]
[1731977590177,0.11665,91199.0,91198.0,0.0118]
[1731977590653,0.10965,91199.0,91198.0,0.0118]
[1731977590865,0.11665,91199.0,91198.0,0.0118]
[1731977592410,0.10965,91199.0,91198.0,0.0118]
[1731977592623,0.11665,91199.0,91198.0,0.0118]
[1731977593301,0.11665,91199.0,91191.0,0.0017052]
[1731977593302,0.10906255,91199.0,91191.0,0.0017052]
[1731977593499,0.30164156,91192.0,91191.0,0.0017052]
[1731977593717,0.41070411,91192.0,91191.0,0.0017052]
[1731977593941,0.43088429,91192.0,91191.0,0.0017052]
[1731977596138,0.43088429,91192.0,91191.0,0.0027052]
[1731977596564,0.46350318,91192.0,91191.0,0.0017052]
[1731977597462,0.109671,91181.0,91180.0,0.0071]
[1731977597685,0.16247007,91181.0,91180.0,0.0071]
[1731977599450,0.16247007,91181.0,91180.0,0.0341]
[1731977599451,0.16347007,91181.0,91180.0,0.0341]
[1731977599656,0.46451618,91181.0,91180.0,0.0341]
[1731977600081,0.46351618,91181.0,91180.0,0.0071]
[1731977600523,0.46351618,91181.0,91145.0,0.16447368]
[1731977600524,0.109703,91155.0,91145.0,0.16447368]
[1731977600733,0.109693,91163.0,91162.0,0.16447368]
[1731977600938,0.109693,91163.0,91145.0,0.16447368]
[1731977600939,0.109714,91146.0,91145.0,0.16447368]
[1731977601196,0.13019893,91146.0,91145.0,0.16447368]
[1731977601396,0.109717,91143.0,91142.0,0.01]
[1731977601601,0.13020193,91143.0,91142.0,0.01]
[1731977601837,0.109718,91142.0,91141.0,0.01]
[1731977602055,0.109721,91140.0,91139.0,0.01]
[1731977602278,0.109721,91140.0,91137.0,0.01]
[1731977602279,0.109723,91138.0,91137.0,0.02]
[1731977602514,0.13020793,91138.0,91137.0,0.02]
[1731977602739,0.16294011,91138.0,91137.0,0.02]
[1731977603358,0.16294011,91138.0,91137.0,0.01]
[1731977603359,0.05321711,91138.0,91137.0,0.01]
[1731977603562,0.05321711,91138.0,91134.0,0.067]
[1731977603563,0.109727,91135.0,91134.0,0.067]
[1731977603779,0.13021193,91135.0,91134.0,0.067]
[1731977604193,0.13021193,91135.0,91134.0,0.057]
[1731977604400,0.13021193,91135.0,91134.0,0.047]
[1731977604615,0.13021193,91135.0,91134.0,0.057]
[1731977605707,0.13121193,91135.0,91134.0,0.075]
[1731977605960,0.109739,91125.0,91124.0,0.01]
[1731977606385,0.109739,91125.0,91121.0,0.1]
[1731977606386,0.109742,91122.0,91121.0,0.1]
[1731977606598,0.13022693,91122.0,91121.0,0.12]
[1731977606802,0.13022693,91122.0,91121.0,0.02]
[1731977607308,0.00391314,91122.0,91121.0,0.23880655]
[1731977607509,0.081,91167.0,91128.0,0.02]
[1731977607719,0.16447368,91134.0,91128.0,0.129734]
[1731977607947,0.219447,91139.0,91128.0,0.02]
[1731977608221,0.27353623,91150.0,91128.0,0.02]
[1731977608460,0.27353623,91150.0,91128.0,0.0142028]
[1731977608678,0.54855,91149.0,91128.0,0.0142028]
[1731977608907,0.109731,91132.0,91128.0,0.0142028]
[1731977609566,0.219444,91140.0,91128.0,0.00041498]
[1731977609784,0.10973,91133.0,91128.0,0.00041498]
[1731977610002,0.01,91146.0,91128.0,0.00041498]
[1731977610003,0.109731,91132.0,91128.0,0.00041498]
[1731977610247,0.01,91142.0,91128.0,0.00041498]
[1731977610465,0.109734,91129.0,91128.0,0.01041498]
[1731977610704,0.109734,91129.0,91128.0,0.00041498]
[1731977610914,0.109734,91129.0,91128.0,0.00141498]
[1731977611123,0.109734,91129.0,91128.0,0.01141498]
[1731977611382,0.109734,91129.0,91128.0,0.00041498]
[1731977611582,0.109734,91129.0,91128.0,0.01041498]
[1731977611796,0.109734,91129.0,91128.0,0.12014998]
[1731977611797,0.002,91129.0,91128.0,0.12014998]
[1731977612010,0.002,91129.0,91128.0,0.33140695]
[1731977612226,0.16147368,91146.0,91136.0,0.109726]
[1731977612435,0.16147368,91146.0,91139.0,0.00041498]
[1731977612681,0.02142432,91158.0,91139.0,0.00041498]
[1731977612682,0.01,91154.0,91139.0,0.00041498]
[1731977612925,0.219411,91153.0,91139.0,0.00041498]
[1731977613162,0.109709,91150.0,91139.0,0.00041498]
[1731977613794,0.109706,91153.0,91140.0,0.10972]
[1731977614228,0.109702,91156.0,91140.0,0.10972]
[1731977614481,0.109707,91152.0,91140.0,0.10972]
[1731977614697,0.219403,91157.0,91139.0,0.10631698]
[1731977614912,0.10971,91149.0,91140.0,0.00685835]
[1731977615351,0.219404,91156.0,91141.0,0.00685835]
[1731977615563,0.31001198,91241.0,91149.0,0.00041498]
[1731977615564,0.01,91169.0,91149.0,0.00041498]
[1731977615796,0.219367,91172.0,91152.0,0.109706]
[1731977615797,0.16447368,91160.0,91152.0,0.109706]
[1731977616009,0.12480273,91184.0,91149.0,0.00041498]
[1731977616010,0.01,91174.0,91161.0,0.109695]
[1731977616235,0.01,91174.0,91153.0,0.00041498]
[1731977616236,0.109683,91172.0,91154.0,0.219408]
[1731977616468,0.01,91174.0,91159.0,0.109697]
[1731977616694,0.01,91174.0,91156.0,0.09666283]
[1731977616900,0.01,91174.0,91157.0,0.1097]
[1731977617121,0.109685,91170.0,91161.0,0.002]
[1731977617333,0.109685,91170.0,91161.0,0.004]
[1731977617540,0.109685,91170.0,91161.0,0.002]
[1731977617779,0.109685,91170.0,91159.0,0.001]
[1731977617997,0.009,91171.0,91160.0,0.109696]
[1731977618210,0.009,91171.0,91168.0,0.001]
[1731977618419,0.009,91171.0,91170.0,0.109685]
[1731977618641,0.009,91171.0,91169.0,0.25467924]
[1731977618852,0.009,91171.0,91170.0,0.14499424]
[1731977619064,0.009,91171.0,91170.0,0.109685]
[1731977619272,0.009,91171.0,91170.0,0.25467924]
[1731977619477,0.01,91185.0,91170.0,0.25467924]
[1731977619691,0.109671,91182.0,91173.0,0.09665384]
[1731977619919,0.109671,91182.0,91172.0,0.09665384]
[1731977620385,0.219324,91189.0,91170.0,0.14499424]
[1731977620386,0.0008528,91192.0,91191.0,0.132659]
[1731977620596,0.0008528,91192.0,91191.0,0.34213653]
[1731977621229,0.0008528,91192.0,91191.0,0.35413653]
[1731977621443,0.0008526,91209.0,91208.0,0.111639]
[1731977621652,0.0008526,91209.0,91208.0,0.25640657]
[1731977622320,0.0008526,91209.0,91208.0,0.111639]
[1731977622543,0.0008526,91209.0,91208.0,0.31760489]
[1731977622765,0.0008526,91209.0,91208.0,0.5157841]
[1731977622984,0.15817898,91226.0,91225.0,0.109619]
[1731977623219,0.219173,91252.0,91228.0,0.109615]
[1731977623220,0.01,91246.0,91228.0,0.109615]
[1731977623637,0.01,91246.0,91228.0,0.111615]
[1731977624075,0.17447368,91246.0,91228.0,0.111615]
[1731977624548,0.17447368,91246.0,91228.0,0.109615]
[1731977625252,0.109596,91244.0,91228.0,0.109615]
[1731977625462,0.16447368,91246.0,91228.0,0.109615]
[1731977625899,0.0004,91249.0,91228.0,0.10906255]
[1731977626128,0.0004,91249.0,91231.0,0.002]
[1731977626129,0.16447368,91246.0,91231.0,0.002]
[1731977626349,0.0004,91249.0,91243.0,0.109597]
[1731977626559,0.0004,91249.0,91247.0,0.109592]
[1731977626800,0.0004,91249.0,91234.0,0.002]
[1731977626801,0.0004,91249.0,91235.0,0.10906255]
[1731977627018,0.0004,91249.0,91247.0,0.109592]
[1731977627231,0.0004,91249.0,91248.0,0.109591]
[1731977627496,0.0004,91249.0,91248.0,0.22065355]
[1731977627731,0.0004,91249.0,91248.0,0.111591]
[1731977628640,0.0004,91249.0,91242.0,0.00041498]
[1731977628851,0.0004,91249.0,91233.0,0.1]
[1731977628852,0.219186,91247.0,91240.0,0.00041498]
[1731977629065,0.219186,91247.0,91233.0,0.1]
[1731977629066,0.219187,91246.0,91242.0,0.00041498]
[1731977629281,0.328775,91248.0,91242.0,0.00041498]
[1731977629525,0.0004,91249.0,91242.0,0.00041498]
[1731977629745,0.0004,91249.0,91233.0,0.209609]
[1731977629746,0.109599,91241.0,91240.0,0.00041498]
[1731977629955,0.0004,91249.0,91238.0,0.00041498]
[1731977629956,0.109602,91239.0,91238.0,0.00041498]
[1731977630665,0.109605,91236.0,91232.0,0.0484]
[1731977630882,0.01,91248.0,91232.0,0.0484]
[1731977631096,0.01,91248.0,91226.0,0.00041498]
[1731977631333,0.01,91240.0,91219.0,0.00041498]
[1731977631581,0.109614,91229.0,91228.0,0.16447368]
[1731977632027,0.01958502,91240.0,91219.0,0.00041498]
[1731977632449,0.109618,91226.0,91219.0,0.00041498]
[1731977632665,0.109619,91225.0,91219.0,0.00041498]
[1731977632883,0.219223,91232.0,91219.0,0.00041498]
[1731977633095,0.10962,91225.0,91219.0,0.00041498]
[1731977633312,0.00958502,91240.0,91216.0,0.0463]
[1731977633313,0.01,91236.0,91216.0,0.0463]
[1731977633524,0.01,91236.0,91217.0,0.16447368]
[1731977633762,0.16447368,91238.0,91217.0,0.16447368]
[1731977633763,0.109627,91218.0,91217.0,0.16447368]
[1731977633954,0.40631183,91233.0,91207.0,0.16447368]
[1731977633955,0.21925,91221.0,91207.0,0.16447368]
[1731977634164,0.548125,91220.0,91207.0,0.16447368]
[1731977634379,0.21925,91221.0,91207.0,0.16447368]
[1731977634592,0.109639,91208.0,91207.0,0.16447368]
[1731977634809,0.109639,91208.0,91207.0,0.16447368]
[1731977635050,0.18709383,91243.0,91218.0,0.002]
[1731977635264,0.16447368,91230.0,91225.0,0.219236]
[1731977635484,0.219214,91235.0,91219.0,0.00041498]
[1731977635742,0.219204,91239.0,91221.0,0.109623]
[1731977635951,0.109613,91230.0,91219.0,0.00041498]
[1731977636160,0.109614,91229.0,91221.0,0.109623]
[1731977636406,0.219221,91232.0,91219.0,0.00041498]
[1731977636617,0.109623,91222.0,91219.0,0.00041498]
[1731977636827,0.109625,91220.0,91219.0,0.00041498]
[1731977637060,0.109622,91223.0,91219.0,0.00041498]
[1731977637268,0.01,91236.0,91219.0,0.00041498]
[1731977637483,0.01,91236.0,91219.0,0.00341498]
[1731977637718,0.109625,91220.0,91219.0,0.0047046]
[1731977637927,0.103625,91220.0,91219.0,0.0047046]
[1731977638379,0.109619,91225.0,91219.0,0.0207046]
[1731977638588,0.01,91237.0,91219.0,0.00511958]
[1731977638827,0.01,91235.0,91219.0,0.00711958]
[1731977639047,0.10962,91225.0,91219.0,0.00511958]
[1731977639268,0.219218,91233.0,91219.0,0.00211958]
[1731977639494,0.01,91242.0,91219.0,0.00411958]
[1731977639721,0.16447368,91239.0,91219.0,0.00411958]
[1731977639946,0.260317,91276.0,91219.0,0.00211958]
[1731977639947,0.01,91237.0,91219.0,0.00211958]
[1731977640225,0.109625,91220.0,91219.0,0.00211958]
[1731977640437,0.109605,91236.0,91219.0,0.00411958]
[1731977640670,0.109625,91220.0,91219.0,0.0017046]
[1731977641543,0.109625,91220.0,91219.0,0.0027046]
[1731977641749,0.109625,91220.0,91219.0,0.0017046]
[1731977642404,0.109625,91220.0,91219.0,0.0027046]
[1731977642861,0.109625,91220.0,91219.0,0.0017046]
[1731977643076,0.219228,91229.0,91219.0,0.0017046]
[1731977643286,0.00958502,91235.0,91223.0,0.002]
[1731977643536,0.00958502,91235.0,91219.0,0.0037046]
[1731977643995,0.109618,91226.0,91219.0,0.1133296]
[1731977644177,0.10962,91225.0,91219.0,0.1133296]
[1731977644400,0.10962,91224.0,91219.0,0.0037046]
[1731977644623,0.219235,91227.0,91219.0,0.1133296]
[1731977644839,0.02034926,91234.0,91219.0,0.0137046]
[1731977645051,0.00958502,91235.0,91219.0,0.0017046]
[1731977645052,0.109622,91223.0,91219.0,0.0017046]
[1731977645476,0.109625,91220.0,91219.0,0.0087046]
[1731977645678,0.109625,91220.0,91219.0,0.0017046]
[1731977645884,0.12997426,91220.0,91219.0,0.0017046]
[1731977646087,0.109625,91220.0,91219.0,0.0017046]
[1731977646301,0.12997426,91220.0,91219.0,0.0017046]
[1731977646951,0.12997426,91220.0,91219.0,0.0067046]
[1731977647617,0.05304265,91220.0,91219.0,0.0067046]
[1731977648091,0.05304265,91220.0,91219.0,0.1113306]
[1731977649378,0.05304265,91220.0,91219.0,0.1143306]
[1731977649623,0.02034926,91220.0,91219.0,0.1143306]
[1731977649839,0.02034926,91220.0,91219.0,0.1113306]
[1731977650071,0.02034926,91220.0,91219.0,0.1213306]
[1731977650543,0.02049148,91220.0,91219.0,0.1233306]
[1731977650967,0.02049148,91220.0,91219.0,0.1213306]
[1731977651198,0.02049148,91220.0,91219.0,0.11174558]
[1731977651424,0.02049148,91220.0,91219.0,0.11274558]
[1731977651891,0.02049148,91220.0,91219.0,0.12074558]
[1731977652308,0.02049148,91220.0,91219.0,0.11274558]
[1731977652539,0.02049148,91220.0,91219.0,0.22980813]
[1731977652759,0.02049148,91220.0,91219.0,0.22880813]
[1731977652968,0.01249148,91220.0,91219.0,0.22880813]
[1731977653220,0.01249148,91220.0,91219.0,0.23180813]
[1731977653887,0.109612,91231.0,91219.0,0.12218213]
[1731977654099,0.109612,91231.0,91224.0,0.109619]
[1731977654316,0.16447368,91239.0,91220.0,0.00041498]
[1731977654526,0.219209,91237.0,91220.0,0.00041498]
[1731977654764,0.16447368,91239.0,91223.0,0.10962]
[1731977654765,0.109612,91231.0,91223.0,0.10962]
[1731977655213,0.109612,91231.0,91224.0,0.10962]
[1731977655690,0.109612,91231.0,91221.0,0.221247]
[1731977655691,0.109614,91229.0,91222.0,0.109622]
[1731977655925,0.09955633,91253.0,91220.0,0.00041498]
[1731977656144,0.09955633,91253.0,91223.0,0.003]
[1731977656145,0.16447368,91240.0,91223.0,0.003]
[1731977656360,0.109614,91230.0,91223.0,0.003]
[1731977656580,0.16447368,91240.0,91223.0,0.003]
[1731977656581,0.219202,91240.0,91223.0,0.003]
[1731977656805,0.109615,91229.0,91223.0,0.003]
[1731977657080,0.109618,91226.0,91223.0,0.003]
[1731977657273,0.10962,91224.0,91223.0,0.003]
[1731977658371,0.12458658,91235.0,91223.0,0.006]
[1731977658588,0.34378158,91243.0,91223.0,0.003]
[1731977658821,0.109615,91228.0,91223.0,0.003]
[1731977659068,0.109616,91227.0,91224.0,0.001]
[1731977659279,0.109616,91227.0,91223.0,0.005]
[1731977659488,0.219206,91238.0,91223.0,0.232242]
[1731977659758,0.16447368,91240.0,91223.0,0.002]
[1731977659971,0.01958502,91241.0,91223.0,0.002]
[1731977659972,0.01958502,91241.0,91223.0,0.012]
[1731977660199,0.109613,91230.0,91223.0,0.121621]
[1731977660414,0.109612,91231.0,91226.0,0.16447368]
[1731977660617,0.109612,91231.0,91225.0,0.109618]
[1731977660835,0.109612,91231.0,91225.0,0.111618]
[1731977661047,0.109606,91236.0,91226.0,0.109617]
[1731977661258,0.219184,91248.0,91225.0,0.219238]
[1731977661259,0.22876902,91248.0,91225.0,0.219238]
[1731977661475,0.0008525,91230.0,91223.0,0.002]
[1731977661680,0.0008525,91230.0,91227.0,0.109615]
[1731977661893,0.0008525,91230.0,91228.0,0.109614]
[1731977662552,0.0008525,91230.0,91221.0,0.219247]
[1731977662759,0.0008525,91230.0,91228.0,0.109614]
[1731977663218,0.0008525,91230.0,91225.0,0.109618]
[1731977663437,0.0008525,91230.0,91228.0,0.003]
[1731977663689,0.0008525,91230.0,91228.0,0.112615]
[1731977663900,0.0008525,91230.0,91228.0,0.003]
[1731977664361,0.109614,91229.0,91228.0,0.003]
[1731977664581,0.14245416,91229.0,91228.0,0.003]
[1731977664799,0.03284016,91229.0,91228.0,0.003]
[1731977665011,0.05336561,91229.0,91228.0,0.112615]
[1731977665222,0.05336561,91229.0,91228.0,0.109615]
[1731977665667,0.02052545,91229.0,91228.0,0.109615]
[1731977666561,0.02052545,91229.0,91228.0,0.116615]
[1731977667043,0.02052545,91229.0,91228.0,0.21171627]
[1731977667270,0.02052545,91229.0,91228.0,0.26267798]
[1731977667537,0.02052545,91229.0,91228.0,0.11302998]
[1731977667991,0.01252545,91229.0,91228.0,0.11202998]
[1731977668454,0.01252545,91229.0,91228.0,0.2471219]
[1731977668665,0.01252545,91229.0,91228.0,0.3567369]
[1731977668874,0.01252545,91229.0,91228.0,0.3647369]
[1731977669080,0.01252545,91229.0,91228.0,0.3547369]
[1731977669327,0.01252545,91229.0,91228.0,0.11402998]
[1731977669519,0.01252545,91229.0,91228.0,0.13702998]
[1731977669736,0.01252545,91229.0,91228.0,0.11202998]
[1731977669944,0.01252545,91229.0,91228.0,0.22109253]
[1731977670151,0.01252545,91229.0,91228.0,0.25109253]
[1731977670361,0.01252545,91229.0,91228.0,0.23009253]
[1731977670579,0.01252545,91229.0,91228.0,0.22109253]
[1731977670782,0.01252545,91229.0,91228.0,0.24609253]
[1731977670991,0.01252545,91229.0,91228.0,0.25609253]
[1731977671403,0.01252545,91229.0,91228.0,0.40165833]
[1731977671607,0.0008525,91230.0,91229.0,0.11202898]
[1731977671830,0.0008525,91230.0,91229.0,0.22328359]
[1731977672044,0.0008525,91230.0,91229.0,0.22109153]
[1731977672469,0.0008525,91230.0,91229.0,0.31812333]
[1731977673221,0.0008525,91230.0,91229.0,0.25309153]
[1731977674337,0.0008525,91230.0,91229.0,0.35012333]
[1731977674550,0.0008525,91230.0,91229.0,0.36012333]
[1731977674790,0.0008525,91230.0,91229.0,0.39865733]
[1731977675007,0.0008525,91230.0,91229.0,0.14402898]
[1731977675657,0.0008525,91230.0,91229.0,0.14202898]
[1731977676068,0.0008525,91230.0,91229.0,0.03241498]
[1731977676529,0.0008525,91230.0,91229.0,0.14402898]
[1731977676733,0.0008525,91230.0,91229.0,0.14202898]
[1731977677192,0.0008525,91230.0,91229.0,0.14402898]
[1731977677413,0.0008525,91230.0,91229.0,0.14202898]
[1731977677874,0.0008525,91230.0,91229.0,0.14402898]
[1731977678099,0.0008525,91230.0,91229.0,0.14202898]
[1731977678791,0.1104655,91230.0,91229.0,0.03241498]
[1731977679033,0.0008525,91230.0,91229.0,0.03241498]
[1731977679923,0.02136726,91230.0,91229.0,0.03241498]
[1731977681381,0.13098026,91230.0,91229.0,0.03241498]
[1731977681776,0.02136726,91230.0,91229.0,0.03241498]
[1731977681893,0.05419434,91230.0,91229.0,0.03241498]
[1731977682124,0.16380734,91230.0,91229.0,0.03241498]
[1731977682763,0.15580734,91230.0,91229.0,0.03241498]
[1731977683376,0.15580734,91230.0,91229.0,0.032]
[1731977683578,0.27486989,91230.0,91229.0,0.032]
[1731977684213,0.32109185,91230.0,91229.0,0.032]
[1731977684645,0.32194425,91230.0,91229.0,0.023]
[1731977684859,0.27574991,91230.0,91229.0,0.023]
[1731977685065,0.30857203,91230.0,91229.0,0.023]
[1731977685265,0.27436911,91230.0,91229.0,0.023]
[1731977685503,0.30855525,91230.0,91229.0,0.023]
[1731977685708,0.119614,91229.0,91228.0,0.0017048]
[1731977685912,0.29568481,91229.0,91228.0,0.0017048]
[1731977686129,0.26149867,91229.0,91228.0,0.0017048]
[1731977686824,0.26149867,91229.0,91228.0,0.0037048]
[1731977687262,0.26149867,91229.0,91228.0,0.0047048]
[1731977687471,0.26149867,91229.0,91228.0,0.0017048]
[1731977687677,0.26149867,91229.0,91228.0,0.0057048]
[1731977688309,0.22867655,91229.0,91228.0,0.0057048]
[1731977688514,0.26147227,91229.0,91228.0,0.0057048]
[1731977688944,0.22867655,91229.0,91228.0,0.0037048]
[1731977689166,0.109614,91229.0,91228.0,0.0037048]
[1731977689399,0.109614,91229.0,91228.0,0.0057048]
[1731977689846,0.14240241,91229.0,91228.0,0.0037048]
[1731977690072,0.14240241,91229.0,91228.0,0.0057048]
[1731977690287,0.14240241,91229.0,91228.0,0.0037048]
[1731977690923,0.109614,91229.0,91228.0,0.0037048]
[1731977691133,0.0008524,91230.0,91228.0,0.0017048]
[1731977691816,0.0008524,91230.0,91228.0,0.1113198]
[1731977692016,0.0008524,91230.0,91228.0,0.1133198]
[1731977692243,0.0008524,91230.0,91229.0,0.109614]
[1731977693082,0.0008524,91230.0,91228.0,0.0067048]
[1731977693301,0.0008524,91230.0,91228.0,0.0017048]
[1731977693539,0.0008524,91230.0,91228.0,0.1113188]
[1731977693760,0.0008524,91230.0,91229.0,0.116614]
[1731977693988,0.0008524,91230.0,91228.0,0.00211978]
[1731977694254,0.0008524,91230.0,91229.0,0.111614]
[1731977694882,0.0008524,91230.0,91229.0,0.002]
[1731977695553,0.0008524,91230.0,91229.0,0.38556521]
[1731977695756,0.0008524,91230.0,91229.0,0.22109153]
[1731977695971,0.0008524,91230.0,91229.0,0.22409153]
[1731977696182,0.0008524,91230.0,91229.0,0.2359512]
[1731977696621,0.0008524,91230.0,91229.0,0.2329512]
[1731977697056,0.0008524,91230.0,91229.0,0.2569512]
[1731977697719,0.0008524,91230.0,91229.0,0.2669512]
[1731977697988,0.0008523,91246.0,91245.0,0.002]
[1731977698186,0.0008523,91246.0,91245.0,0.111595]
[1731977699226,0.0008523,91246.0,91245.0,0.22065755]
[1731977699450,0.0008523,91246.0,91245.0,0.26955755]